Cogmind - Beta 16 @@@ ROGUE MODE // 2025.10.30 @ 22:17:21 Player: flignut Result: Destroyed by 7P-L0E(R) with Subdweller Beam Cannon Performance ------------- Evolutions (0) 0 Regions Visited (3) 600 Robots Destroyed (13) 65 Value Destroyed (359) 359 Prototype IDs (12) 240 Alien Tech Used (0) 0 Bonus (0) 0 TOTAL SCORE: 1264 Bonus ------- None Cogmind --------- Core Integrity 0/250 Matter 272/300 Energy 100/100 System Corruption 10% Temperature Cool (9) Movement Rolling (110) Location -10/Subcaves Parts ------- > --- POWER (1) -------- (None) > --- PROPULSION (2) --- Subdweller Monowheel > --- UTILITY (2) ------ Medium Storage Unit > --- WEAPON (2) ------- Small Laser > --- INVENTORY (10) --- Subdweller Power Source Structural Scanner Subdweller Optics Terrain Scanner Scrap Shield Subdweller Shrapnel Launcher Peak State ------------ > --- POWER ------------ Ion Engine > --- PROPULSION ------- Carbon-fiber Leg Carbon-fiber Leg > --- UTILITY ---------- Medium Storage Unit Subdweller Optics > --- WEAPON ----------- Medium Laser Hammer > --- INVENTORY -------- Subdweller Power Source Structural Scanner Terrain Scanner Scrap Shield Small Laser Subdweller Machine Gun [Rating: 13] Favorites ----------- Power Ion Engine Engine Ion Engine Propulsion Aluminum Leg Leg Aluminum Leg Wheel Subdweller Monowheel Utility Medium Storage Unit Device Structural Scanner Storage Medium Storage Unit Weapon Medium Laser Energy Gun Medium Laser Ballistic Gun Light Assault Rifle Launcher Grenade Launcher Impact Weapon Hammer Build | -11 -10 -10 -10 ------- Run | Yrd Mat Min Sub Slots Evolved . | . . . . Power . | . . . . Propulsion . | . . . . Utility . | . . . . Weapon . | . . . . Parts Attached 21 | 4 7 1 9 Power 2 | 1 1 . . Engine 2 | 1 1 . . Core . | . . . . Reactor . | . . . . Propulsion 6 | 2 1 . 3 Treads . | . . . . Leg 5 | 2 1 . 2 Wheel 1 | . . . 1 Hover . | . . . . Flight . | . . . . Utility 5 | . 4 . 1 Device 4 | . 3 . 1 Storage 1 | . 1 . . Processor . | . . . . Hackware . | . . . . Protection . | . . . . Artifact . | . . . . Weapon 8 | 1 1 1 5 Energy Gun 2 | 1 . . 1 Energy Cannon . | . . . . Ballistic Gun 4 | . 1 1 2 Ballistic Cannon . | . . . . Launcher 1 | . . . 1 Special Weapon . | . . . . Impact Weapon 1 | . . . 1 Slashing Weapon . | . . . . Piercing Weapon . | . . . . Special Melee Weapon . | . . . . Unidentified Prototypes . | . . . . Parts Lost 10 | . . . 10 Power 1 | . . . 1 Propulsion 2 | . . . 2 Utility 1 | . . . 1 Weapon 6 | . . . 6 Highest Loss Streak 4 | . . . 4 To Critical Strikes . | . . . . Average Backups 5 | 1 3 6 7 Power . | . . . . Propulsion . | . 1 2 . Utility 1 | . . 1 3 Weapon 2 | 1 2 3 2 Tool/Special . | . . . . Unused Backups 9 | . 2 . 7 Power 2 | . 1 . 1 Propulsion 2 | . . . 2 Utility 3 | . . . 3 Weapon 2 | . 1 . 1 Tool/Special . | . . . . Average Slot Usage (%) 87 | . 84 96 88 Engine 13 | . 14 14 13 Leg 24 | . 28 28 21 Device 11 | . 13 14 10 Storage 10 | . 3 14 14 Energy Gun 9 | . 14 14 6 Ballistic Gun 8 | . 11 10 6 Launcher 1 | . . . 3 Impact Weapon 5 | . . . 9 Peak Build Rating 13 | 4 7 7 13 Average Rating 8 | 3 6 6 9 On Entrance 4 | . 4 7 7 Avg Prop Armor Cover (%) . | . . . . Naked Turns . | . . . . Heaviest Build 21 | 5 19 20 21 Greatest Support 30 | 20 20 20 30 Greatest Overweight (x) 6 | . . . 6 Average Overweight (x) . | . . . . Largest Inventory Capacity 10 | 5 10 10 10 Average Capacity 8 | 5 6 10 10 Most Carried 10 | 3 5 8 10 Average Carried 6 | 1 3 6 8 Final Capacity 10 | 5 10 10 10 Final Carried 7 | 2 5 7 7 Class Distribution -------------------- 68% | Mutant 31% | Scavenger-Mutant Dominant Class ---------------- Mutant | -10/Materials Mutant | -10/Mines Scavenger-Mutant | -10/Subcaves Resources | -11 -10 -10 -10 ----------- Run | Yrd Mat Min Sub Matter Collected 453 | 210 121 11 111 Remotely 67 | . 67 . . Salvage Created 368 | . 233 . 135 Parts 21 | . 13 . 8 Haulers Intercepted . | . . . . Recyclers Shooed . | . . . . Parts Field Recycled . | . . . . Retrieved Matter . | . . . . Parts Self-Destructed 13 | . . . 13 Prevented . | . . . . Parts Restored . | . . . . Kills | -11 -10 -10 -10 ------- Run | Yrd Mat Min Sub Combat Hostiles Destroyed 11 | . 7 . 4 Melee 2 | . . . 2 Guns 7 | . 7 . . AOE 2 | . . . 2 Classes Destroyed 4 | . 3 . 1 Watcher 2 | . 2 . . Swarmer 3 | . 3 . . Grunt 6 | . 4 . 2 Subdweller 2 | . . . 2 Best Kill Streak 2 | . 2 . 2 Combat Bots Only 2 | . 2 . 2 Max Kills in Single Turn 2 | . 1 . 2 Gunslinging . | . . . . Exploded 2 | . . . 2 Melee 1 | . . . 1 Uniques/NPCs Destroyed . | . . . . Combat | -11 -10 -10 -10 -------- Run | Yrd Mat Min Sub Hostile Shots Fired 80 | . 37 3 40 Missed 19 | . 11 . 8 Hits 61 | . 26 3 32 Projectile 61 | . 26 3 32 Damage Taken 1523 | . 260 75 1188 Core 277 | . 105 9 163 Absorbed by Shields . | . . . . Core Remaining (%) 100 | 100 . . . Volleys Fired 40 | . 28 1 11 Largest 2 | . 2 1 2 Hottest 70 | . 70 50 70 Shots Fired 66 | . 50 1 15 Gun 62 | . 50 1 11 Cannon . | . . . . Launcher 4 | . . . 4 Special . | . . . . Kinetic 30 | . 22 . 8 Thermal 32 | . 28 1 3 Explosive 4 | . . . 4 Electromagnetic . | . . . . Robot Hit Streak 8 | . 8 1 6 Robot Miss Streak 2 | . 2 . 1 Penetration Max . | . . . . Secondary Targets . | . . . . Shots Hit Robots 56 | . 35 1 20 Core Hits 24 | . 14 . 10 Critical Kills . | . . . . Critical Parts Destroyed 2 | . . . 2 Critical Strikes 3 | . . . 3 Smash 3 | . . . 3 Melee Attacks 50 | . . . 50 Impact 50 | . . . 50 Slashing . | . . . . Piercing . | . . . . Sneak Attacks . | . . . . Combat Hostiles . | . . . . Follow-up Attacks . | . . . . Damage Inflicted 1072 | . 375 12 685 Guns 508 | . 375 12 121 Cannons . | . . . . Explosions 316 | . . . 316 Melee 248 | . . . 248 Ramming . | . . . . Kinetic 226 | . 117 . 109 Thermal 282 | . 258 12 12 Explosive 316 | . . . 316 Electromagnetic . | . . . . Impact 248 | . . . 248 Slashing . | . . . . Piercing . | . . . . Highest Corruption 10 | . . . 10 Average Corruption 9 | . . . 9 Corruption Purged . | . . . . Corruption Blocked . | . . . . Effects 6 | . . . 6 Message Errors 2 | . . . 2 Matter Fused 1 | . . . 1 Heat Flow Errors 1 | . . . 1 Data Loss (minor) 2 | . . . 2 Overload Shots . | . . . . Overflow Damage 65 | . . . 65 Projectiles . | . . . . Explosions . | . . . . Melee 65 | . . . 65 Knockbacks 4 | . . . 4 Impact 4 | . . . 4 Kinetic . | . . . . Secondary . | . . . . Self-Inflicted Damage . | . . . . Shots . | . . . . Rammed . | . . . . Targets Rammed . | . . . . Kicked . | . . . . Crushed . | . . . . Highest Temperature 152 | . 152 16 89 Average Temperature 39 | . 40 9 49 Received Heat Transfer 228 | . 66 18 144 Siege Activations . | . . . . Martial Activations . | . . . . Shielding Activations . | . . . . Robots Disrupted . | . . . . Combat Hostiles . | . . . . Robots Corrupted . | . . . . Combat Hostiles . | . . . . Parts Fried . | . . . . Impact Corruptions 2 | . . . 2 Robots Melted . | . . . . Combat Hostiles . | . . . . Parts Melted 4 | . 4 . . Heat Transferred 802 | . 740 37 25 Parts Sabotaged . | . . . . Parts Stolen . | . . . . Parts Stripped . | . . . . Power Chain Reactions . | . . . . Alert | -11 -10 -10 -10 ------- Run | Yrd Mat Min Sub Maximum Alert Level . | . . . . Low Security (%) 100 | 100 100 100 . Level 1 . | . . . . Level 2 . | . . . . Level 3 . | . . . . Level 4 . | . . . . Level 5 . | . . . . High Security . | . . . . Max Security . | . . . . Peak Influence 88 | . 88 3 . Initial 3 | . . 3 . Average 31 | . 40 . . Influence Increases 295 | . 230 . 65 Destroy 0b10 Robot/C 180 | . 140 . 40 Destroy 0b10 Robot/NC 10 | . 10 . . Destroy Leader 34 | . 24 . 10 Successful Hack 26 | . 26 . . Lose Combat Pursuer 45 | . 30 . 15 Influence Decreases 295 | . 221 9 65 Entered New Map 6 | . . 6 . Time Decay 284 | . 221 3 60 Lost Part 5 | . . . 5 Squads Dispatched 2 | . 2 . . Investigation 2 | . 2 . . Extermination . | . . . . Reinforcement . | . . . . Assault . | . . . . Garrison . | . . . . Intercept . | . . . . Searches Triggered . | . . . . Construction Impeded . | . . . . Haulers Reinforced . | . . . . Active Scanning Responses . | . . . . Cargo Convoy Interrupts . | . . . . Stealth | -11 -10 -10 -10 --------- Run | Yrd Mat Min Sub Distress Signals . | . . . . Communications Jammed . | . . . . Distress Signals . | . . . . Times Spotted 32 | . 16 2 14 Peak Tracking Total 7 | . 3 2 7 Tactical Retreats 3 | . 2 . 1 Traps | -11 -10 -10 -10 ------- Run | Yrd Mat Min Sub Traps Triggered 1 | . 1 . . Indirectly . | . . . . Trap Hack Attempts . | . . . . Triggered . | . . . . Disarmed . | . . . . Reprogrammed . | . . . . Reused . | . . . . Traps Extracted . | . . . . Installed . | . . . . Triggered . | . . . . Machines | -11 -10 -10 -10 ---------- Run | Yrd Mat Min Sub Machines Disabled . | . . . . Max in Single Turn . | . . . . Machines Repaired . | . . . . Machines Dismantled . | . . . . Machines Sabotaged . | . . . . Overloaded Fab Kills . | . . . . Hacking | -11 -10 -10 -10 --------- Run | Yrd Mat Min Sub Machines Accessed 8 | . 7 . 1 Terminals 6 | . 6 . . Fabricators . | . . . . Repair Stations . | . . . . Recycling Units 1 | . 1 . . Scanalyzers . | . . . . Garrison Access . | . . . . Total Hacks 31 | . 22 . 9 Successful 20 | . 11 . 9 Failed 11 | . 11 . . Catastrophic 1 | . 1 . . Database Lockouts . | . . . . Manual 19 | . 19 . . Terminals 18 | . 18 . . Fabricators . | . . . . Repair Stations . | . . . . Recycling Units 4 | . 4 . . Scanalyzers . | . . . . Garrison Access . | . . . . Terminal Hacks 13 | . 4 . 9 Record 8 | . . . 8 Robot Analysis 2 | . 2 . . Level Access Points 1 | . 1 . . Terminal Index 1 | . 1 . . Proto ID Catalog 1 | . . . 1 Fabricator Hacks . | . . . . Repair Station Hacks . | . . . . Recycling Unit Hacks 4 | . 4 . . Recycle Component 1 | . 1 . . Process 2 | . 2 . . Report Inventory 1 | . 1 . . Scanalyzer . | . . . . Garrison Access Hacks . | . . . . Unauthorized Hacks 3 | . 3 . . Terminals 3 | . 3 . . Botnet 3 | . 3 . . Fabricators . | . . . . Repair Stations . | . . . . Recycling Units . | . . . . Scanalyzers . | . . . . Garrison Access . | . . . . Data Cores Recovered . | . . . . Used . | . . . . Hacking Detections 7 | . 7 . . Full Trace Events 4 | . 4 . . Feedback Events . | . . . . Feedback Blocked . | . . . . Robot Schematics Acquired . | . . . . Robots Built . | . . . . Authchips . | . . . . Time . | . . . . Total Robot Build Rating . | . . . . Part Schematics Acquired . | . . . . Parts Built . | . . . . Authchips . | . . . . Time . | . . . . Total Part Build Rating . | . . . . Part Studies Acquired . | . . . . Parts Repaired . | . . . . Time . | . . . . Parts Recycled 1 | . 1 . . Recycled Matter 77 | . 77 . . Retrieved Matter . | . . . . Retrieved Components . | . . . . Parts Scanalyzed . | . . . . Part Schematics Acquired . | . . . . Parts Damaged . | . . . . Bothacking | -11 -10 -10 -10 ------------ Run | Yrd Mat Min Sub Used RIF Installer . | . . . . Robots Hacked . | . . . . Non-combat . | . . . . Combat . | . . . . Robot Hacks Applied . | . . . . Relay Couplers Released . | . . . . Fabnet Peak Effective % . | . . . . Robots Rewired . | . . . . Allies Hacked . | . . . . Hacks Repelled . | . . . . Allies | -11 -10 -10 -10 -------- Run | Yrd Mat Min Sub Total Allies . | . . . . Largest Group . | . . . . Highest-Rated Group . | . . . . Highest-Rated Ally . | . . . . Total Orders . | . . . . Ally Attacks . | . . . . Total Damage . | . . . . Kills . | . . . . Allies Corrupted . | . . . . Allies Melted . | . . . . Intel | -11 -10 -10 -10 ------- Run | Yrd Mat Min Sub Active Infowar (turns) 652 | . 138 114 400 Optics 140 | . . . 140 Structural 512 | . 138 114 260 Robot Analysis Total 2 | . 2 . . Derelict Logs Recovered . | . . . . Drone Launches . | . . . . Drone Recoveries . | . . . . Exploration | -11 -10 -10 -10 ------------- Run | Yrd Mat Min Sub Turns Passed 1564 | 53 555 114 842 Spaces Moved 865 | 40 300 87 438 Core 31 | 8 . . 23 Treads . | . . . . Legs 783 | 32 300 87 364 Wheels 51 | . . . 51 Hover . | . . . . Flight . | . . . . Fastest Speed 50 | 50 120 120 110 Average Speed 131 | 106 120 120 144 Slowest Speed 350 | 120 120 120 350 Overloaded Moves . | . . . . Propulsion Burnouts . | . . . . Robots Hopped . | . . . . Potential Cave-ins 12 | . . . 12 Cave-ins Triggered 2 | . . . 2 Exploration Rate (%) 24 | 4 50 18 24 Regions Visited 3 Branch Regions 2 Pre-discovered Areas . | . . . . Known Exits Taken . | . . . . Unknown Exits Taken 3 | 1 1 1 . Scrap Searched 4 | . . 2 2 Spaces Dug 16 | . . . 16 Terrain Destroyed 45 | . . . 45 Melee 16 | . . . 16 Projectile . | . . . . AOE 29 | . . . 29 Terrain Rammed . | . . . . Walls Destroyed . | . . . . Machines Disabled . | . . . . Actions | -11 -10 -10 -10 --------- Run | Yrd Mat Min Sub Total 1142 | 50 450 96 546 Wait 130 | 1 103 4 22 Move 861 | 39 299 86 437 Hop . | . . . . Pick Up 26 | 6 8 3 9 Fast Attach 3 | . 3 . . Attach 18 | 4 3 1 10 Detach 2 | . . . 2 Swap 1 | . 1 . . Drop 10 | . 5 1 4 Fire 40 | . 28 1 11 Melee 50 | . . . 50 Ram . | . . . . Kick . | . . . . Crush . | . . . . Escape Stasis 1 | . . . 1 Rewire . | . . . . Trap . | . . . . Miscellaneous . | . . . . Route ------- -11/Scrapyard -10/Materials (discovered 4 exits: *Mat x3 / [*Min]) -10/Mines (discovered 2 exits: *Mat / *Sub) -10/Subcaves History --------- Turn | Location | Event 3 | -11/Scrapyard | Discovered new exit (range 15) 54 | -11/Scrapyard | Entered Materials 212 | -10/Materials | Discovered new exit (range 6) 302 | -10/Materials | Build established: Mutant 385 | -10/Materials | Identified exit to Materials 391 | -10/Materials | Discovered new exit (range 11) 609 | -10/Materials | Entered Mines 625 | -10/Mines | Discovered exit to Materials (range 15) 627 | -10/Mines | Met a Derelict bent on vengeance 639 | -10/Mines | YI-UF0 nonchalantly dropped a Grenade Launcher on the ground 708 | -10/Mines | Discovered new exit (range 13) 723 | -10/Mines | Entered Subcaves 724 | -10/Subcaves | Approached by a straggling Scientist 912 | -10/Subcaves | Ambushed by swarm of Subdwellers 934 | -10/Subcaves | Core integrity fell below 50% 1207 | -10/Subcaves | Visited 4L-MR0's lab 1227 | -10/Subcaves | Build established: Scavenger-Mutant 1356 | -10/Subcaves | Crushed by falling debris 1357 | -10/Subcaves | Core integrity fell below 20% 1377 | -10/Subcaves | Crushed by falling debris 1377 | -10/Subcaves | System corruption reached 10% 1403 | -10/Subcaves | Shifting Twisted Machinery released Battle Rifle 1403 | -10/Subcaves | Shifting Twisted Machinery released Mak. System Shield 1408 | -10/Subcaves | Lost 4 parts (2n1u1w) 1442 | -10/Subcaves | Shifting Twisted Machinery released Sub. Monowheel 1565 | -10/Subcaves | Destroyed by 7P-L0E(R) with Subdweller Beam Cannon Last Messages --------------- 01377_ Broken Sub. Optics destroyed. 01377_ System corrupted by crushing effect (+1). O4-W1Q(c): "I think it's somewhere east of here" 01391_ The unstable cave ceiling collapses. Battle Rifle falls loose from the Twisted Machinery. Mak. System Shield falls loose from the Twisted Machinery. Sub. Monowheel falls loose from the Twisted Machinery. 01450_ System corrupted: Component data lost. 01488_ XOA&WG6HVT|FXWKCHYCF 01493_ Acquired Sub. Monowheel. 01513_ System corrupted: Matter fused (-7). 01528_ System corrupted: Heat flow error (+129). O4-W1Q(c): "I think it's somewhere east of here" 01539_ Hammer destroyed. 01539_ Ion Engine destroyed. 01555_ VHUT1F:X9|UVBRP,HDR4PEIA 01563_ Sub. Machine Gun destroyed. Map ----- +----------------------------------------------------+ | ???####"=% ###?# ## #??????# ##? | | ??????######??## ## ##??????# #? | | ??????????????# ##???????# ## #? | | ??????????????# ##????????## ?# #### #? | | ??????????????## #??????????## ##??###? | | ???????????????# #???????????## ##??????? | | ???????????????# #????????????#####????????? | | ???????????????## ##?????????????????????????? | | ????????????????## ##??????????????????????????? | | ?????????????????# #???????????????????????????? | | ?????????????????# ##??????????????????????????? | | ?????????????????## #??????????????????????????? | | ??????????????????## ######?????????????????????? | | ???????????????????# ## #?????????????????????? | | ???????????????????# ## ##?????????????????????? | | ???????????????????# #??????????????????????? | | ???????????????????## ##??????????????????????? | | ???????????????###??#####"##?????????????????????? | | ??????????????## ####???## ##????????????????????? | | ??????????????# ##???## ##???????????????????? | | ??????????????# #????#####??????????????????? | | ??????????????## #?????#####?????????????????? | | ??????????###??# ##?##########????????????????? | | ??????????#"& ##" #?## ### ##???????????????? | | ????????????# ### #######??????????????? | | ????????????##"#" ### R@ #?## ##?????????????? | | ?????????????### #### """"##??## #######???????? | | ??????????????# """##????## """ #???????? | | ??????????????## """####???### ##???????? | | ???????????????# #### ###""" #????## ##????????? | | ???????????????## #??###?#""" #???## ##??#??????? | | ???????????????## ###????## #??##" ### #??????? | | ???????????????# #?????# ####""" """#"?????? | | ???????????????# #??????# ""!""" """"""?????? | | ???????????????### #########"""[ "" """ """?????? | | ?????????????????# ## ##" """ """" "#"?????? | | ?????????????????## "" " """"" "#??????? | | ??????????????????## " ## ### "" ##??????? | | ??????????????????## ###### ##?##"""##???????? | | ??????????????????# #????###???##"" #???????? | | ??????????????????# #????????????" ##???????? | | ??????????????????# ##?????????????""????????? | | ?????????????????## ###????????????????????????? | | ?????????????????# ##??????????????????????????? | | ?????????????????# #???????????????????????????? | | ?????????????????#####???????????????????????????? | | ?????????????????????????????????????????????????? | | ?????????????????????????????????????????????????? | | ?????????????????????????????????????????????????? | | ?????????????????????????????????????????????????? | +----------------------------------------------------+ Best States ------------- Heat Dissipation 35 Energy Generation 10 Energy Capacity 250 Matter Stores 300 Matter Capacity 300 Sight Range 21 Terrain Scan Density 10 Evasion (%) 55 Item Schematics ----------------- None Robot Schematics ------------------ None Fabricated ------------ Nothing Repaired ---------- Nothing Studied --------- None Alien Tech Used ----------------- None Achievements -------------- Mistaken Identity Spot Them First There's More Where That Came From Challenges ------------ None Game ------ Seed AutogunMinesnifferRailgun Manual? 0 Play Time 00:32:56 Cumulative 19.7 hours Start 2025.10.30 @ 21:43:55 End 2025.10.30 @ 22:17:21 Sessions 1 Manual Loads 0 Difficulty Rogue Special Mode None Game No. 12 Rogue 12 Adventurer 0 Explorer 0 Win Type - Total 0 Types 0/0/0/0/0/0/0/0/0/0 Lore% 7 Gallery% 15 Achievement% 10 Wizard Run 0 Options --------- Layout 1 ASCII 0 Keyboard 0 Movement Mouse Keybinds 0 Fullscreen 1 Font 24/Smallcaps Map View 50x35 Zoom Use 0% Tactical HUD 1 Map Filters NONE Filters NONE Steam 1 RUN: bd9b7052-f143-431b-b5a9-0dd4c2f65b5b